[Event "Late-Titled-Tuesday-Blitz-February-20-2024"]
[Site "Chess.com"]
[Date "2024.02.20"]
[Round "1"]
[White "ChessLebaneseSalah"]
[Black "vovachesss"]
[Result "0-1"]
[WhiteElo "2416"]
[BlackElo "2797"]
[TimeControl "180+1"]
[EndTime "14:05:53 PST"]
[Termination "vovachesss won by checkmate"]

1. e4 {[%clk 0:03:00.9]} 1... c5 {[%clk 0:02:59.6]} 2. Nf3 {[%clk 0:03:01.1]}
2... e6 {[%clk 0:03:00.1]} 3. d4 {[%clk 0:02:59.7]} 3... cxd4 {[%clk 0:03:01]}
4. Nxd4 {[%clk 0:03:00]} 4... a6 {[%clk 0:03:01.7]} 5. Nc3 {[%clk 0:03:00.2]}
5... b5 {[%clk 0:03:01.6]} 6. Be3 {[%clk 0:02:58.2]} 6... Bb7 {[%clk 0:03:01.4]}
7. a3 {[%clk 0:02:58.3]} 7... Qc7 {[%clk 0:03:01.3]} 8. Bd3 {[%clk 0:02:58.2]}
8... Nf6 {[%clk 0:03:01.6]} 9. O-O {[%clk 0:02:58.1]} 9... Nc6 {[%clk
0:02:59.8]} 10. Qf3 {[%clk 0:02:57]} 10... Bd6 {[%clk 0:02:40.3]} 11. h3 {[%clk
0:02:53.1]} 11... Bh2+ {[%clk 0:02:16.9]} 12. Kh1 {[%clk 0:02:52.9]} 12... Be5
{[%clk 0:02:17.8]} 13. Nce2 {[%clk 0:02:50.4]} 13... O-O {[%clk 0:02:12.5]} 14.
c3 {[%clk 0:02:48.7]} 14... d5 {[%clk 0:02:01.4]} 15. exd5 {[%clk 0:02:44.4]}
15... Nxd5 {[%clk 0:02:01.2]} 16. Qe4 {[%clk 0:02:28.3]} 16... f5 {[%clk
0:01:13.9]} 17. Qh4 {[%clk 0:02:25.6]} 17... Nxd4 {[%clk 0:00:46.4]} 18. Nxd4
{[%clk 0:02:20.8]} 18... Bf6 {[%clk 0:00:29.1]} 19. Qh5 {[%clk 0:02:12.8]} 19...
Nxe3 {[%clk 0:00:19.2]} 20. fxe3 {[%clk 0:02:03.2]} 20... Rae8 {[%clk
0:00:18.8]} 21. Nxe6 {[%clk 0:01:56.9]} 21... Qg3 {[%clk 0:00:14.9]} 22. Nf4
{[%clk 0:01:35.3]} 22... g6 {[%clk 0:00:10.6]} 23. Qd1 {[%clk 0:01:24.8]} 23...
Rxe3 {[%clk 0:00:10.4]} 24. Qd2 {[%clk 0:01:13.6]} 24... Be5 {[%clk 0:00:10]}
25. Qf2 {[%clk 0:01:11.5]} 25... Bxf4 {[%clk 0:00:06.4]} 26. Qxf4 {[%clk
0:01:07.5]} 26... Qxg2# {[%clk 0:00:06.4]} 0-1

[Event "Late-Titled-Tuesday-Blitz-February-20-2024"]
[Site "Chess.com"]
[Date "2024.02.20"]
[Round "1"]
[White "davigator"]
[Black "MyDream003"]
[Result "0-1"]
[WhiteElo "2393"]
[BlackElo "2747"]
[TimeControl "180+1"]
[EndTime "14:06:03 PST"]
[Termination "MyDream003 won by checkmate"]

1. e4 {[%clk 0:03:00.9]} 1... c5 {[%clk 0:02:58.9]} 2. Nf3 {[%clk 0:03:00.2]}
2... d6 {[%clk 0:02:59]} 3. d4 {[%clk 0:03:00.2]} 3... cxd4 {[%clk 0:02:59.9]}
4. Nxd4 {[%clk 0:03:00]} 4... Nf6 {[%clk 0:02:58.5]} 5. Nc3 {[%clk 0:03:00]}
5... a6 {[%clk 0:02:58.9]} 6. Bg5 {[%clk 0:03:00]} 6... e6 {[%clk 0:02:56.4]} 7.
f4 {[%clk 0:02:59.9]} 7... Qc7 {[%clk 0:02:53.6]} 8. Qe2 {[%clk 0:02:59.5]} 8...
Nbd7 {[%clk 0:02:46.7]} 9. O-O-O {[%clk 0:02:58.2]} 9... b5 {[%clk 0:02:37.9]}
10. a3 {[%clk 0:02:57]} 10... Rb8 {[%clk 0:02:36.8]} 11. g4 {[%clk 0:02:56.7]}
11... b4 {[%clk 0:02:29.1]} 12. axb4 {[%clk 0:02:55.7]} 12... Rxb4 {[%clk
0:02:30]} 13. Bg2 {[%clk 0:02:55.7]} 13... Bb7 {[%clk 0:02:06.4]} 14. Rhe1
{[%clk 0:02:54.2]} 14... Be7 {[%clk 0:01:50.6]} 15. f5 {[%clk 0:02:44.2]} 15...
e5 {[%clk 0:01:47.7]} 16. Bxf6 {[%clk 0:02:34.5]} 16... Nxf6 {[%clk 0:01:46.8]}
17. Nb3 {[%clk 0:02:30.2]} 17... a5 {[%clk 0:01:27.6]} 18. g5 {[%clk 0:02:29.3]}
18... Nd7 {[%clk 0:01:25.1]} 19. h4 {[%clk 0:02:23.8]} 19... a4 {[%clk
0:01:22.1]} 20. Nd2 {[%clk 0:02:15]} 20... a3 {[%clk 0:01:16.6]} 21. Nb3 {[%clk
0:02:14.5]} 21... axb2+ {[%clk 0:01:08.7]} 22. Kxb2 {[%clk 0:02:14.4]} 22... Nb6
{[%clk 0:01:03.8]} 23. f6 {[%clk 0:01:59.5]} 23... gxf6 {[%clk 0:00:55.6]} 24.
gxf6 {[%clk 0:01:57.6]} 24... Bxf6 {[%clk 0:00:55.7]} 25. Qf2 {[%clk 0:01:49.6]}
25... Be7 {[%clk 0:00:38.8]} 26. Rd3 {[%clk 0:01:41.3]} 26... Bc8 {[%clk
0:00:31.1]} 27. Bh3 {[%clk 0:01:39.2]} 27... Be6 {[%clk 0:00:30.3]} 28. Bxe6
{[%clk 0:01:38.5]} 28... fxe6 {[%clk 0:00:31.2]} 29. Qf3 {[%clk 0:01:31.4]}
29... Kd7 {[%clk 0:00:30.4]} 30. Qf7 {[%clk 0:01:27.3]} 30... Ra8 {[%clk
0:00:21.7]} 31. Rg1 {[%clk 0:01:17.8]} 31... Na4+ {[%clk 0:00:13.7]} 32. Nxa4
{[%clk 0:01:16]} 32... Rbxa4 {[%clk 0:00:14.6]} 33. Rg7 {[%clk 0:01:13.6]} 33...
Ra2+ {[%clk 0:00:14.1]} 34. Kb1 {[%clk 0:01:10.5]} 34... Qxc2# {[%clk 0:00:15]}
0-1

[Event "Late-Titled-Tuesday-Blitz-February-20-2024"]
[Site "Chess.com"]
[Date "2024.02.20"]
[Round "1"]
[White "HalfIsCrayfish"]
[Black "morte-negra"]
[Result "1-0"]
[WhiteElo "2532"]
[BlackElo "2012"]
[TimeControl "180+1"]
[EndTime "14:06:03 PST"]
[Termination "HalfIsCrayfish won by resignation"]

1. c4 {[%clk 0:03:00.9]} 1... Nf6 {[%clk 0:02:52.9]} 2. Nc3 {[%clk 0:03:01.2]}
2... g6 {[%clk 0:02:52]} 3. e4 {[%clk 0:03:00.6]} 3... d6 {[%clk 0:02:50.3]} 4.
g3 {[%clk 0:03:01]} 4... Bg7 {[%clk 0:02:50.4]} 5. Bg2 {[%clk 0:03:01]} 5... O-O
{[%clk 0:02:50.1]} 6. Nge2 {[%clk 0:03:01.5]} 6... Nc6 {[%clk 0:02:47.8]} 7. O-O
{[%clk 0:03:01.4]} 7... a5 {[%clk 0:02:40.7]} 8. d3 {[%clk 0:03:01.3]} 8... e5
{[%clk 0:02:39.4]} 9. h3 {[%clk 0:03:01.2]} 9... h6 {[%clk 0:02:32.7]} 10. f4
{[%clk 0:03:00.8]} 10... Nh7 {[%clk 0:02:29.2]} 11. f5 {[%clk 0:02:58.6]} 11...
b6 {[%clk 0:01:38.2]} 12. Be3 {[%clk 0:02:55.6]} 12... Nd4 {[%clk 0:01:34.9]}
13. Nd5 {[%clk 0:02:40.5]} 13... c6 {[%clk 0:01:28.3]} 14. f6 {[%clk 0:02:32.6]}
14... Nxf6 {[%clk 0:01:26.7]} 15. Nxf6+ {[%clk 0:02:32]} 15... Bxf6 {[%clk
0:01:25.8]} 16. Bxh6 {[%clk 0:02:32.4]} 16... Re8 {[%clk 0:01:25.2]} 17. Nxd4
{[%clk 0:02:30.1]} 17... exd4 {[%clk 0:01:24.4]} 18. Qf3 {[%clk 0:02:27.4]}
18... Re6 {[%clk 0:01:14.6]} 19. h4 {[%clk 0:02:17.9]} 19... Kh7 {[%clk
0:01:13.7]} 20. Bh3 {[%clk 0:02:10.7]} 20... Re7 {[%clk 0:00:45.8]} 21. Qxf6
{[%clk 0:02:07.7]} 21... Kxh6 {[%clk 0:00:45.4]} 22. Bxc8 {[%clk 0:01:40]} 22...
Rxc8 {[%clk 0:00:44.1]} 23. h5 {[%clk 0:01:20.4]} 23... Qd7 {[%clk 0:00:26.3]}
24. hxg6 {[%clk 0:01:13.6]} 24... fxg6 {[%clk 0:00:26.7]} 25. Rf4 {[%clk
0:01:10.2]} 25... Re5 {[%clk 0:00:20.2]} 26. Rh4+ {[%clk 0:00:49.3]} 1-0

[Event "Late-Titled-Tuesday-Blitz-February-20-2024"]
[Site "Chess.com"]
[Date "2024.02.20"]
[Round "1"]
[White "chegueps"]
[Black "Balla_Tamas"]
[Result "0-1"]
[WhiteElo "2655"]
[BlackElo "2375"]
[TimeControl "180+1"]
[EndTime "14:06:21 PST"]
[Termination "Balla_Tamas won by checkmate"]

1. d4 {[%clk 0:02:53.9]} 1... d5 {[%clk 0:02:59.8]} 2. Nf3 {[%clk 0:02:53.5]}
2... Nf6 {[%clk 0:02:59.6]} 3. Bg5 {[%clk 0:02:53]} 3... e6 {[%clk 0:02:57.9]}
4. Nbd2 {[%clk 0:02:51.9]} 4... Be7 {[%clk 0:02:57.4]} 5. Bxf6 {[%clk
0:02:51.3]} 5... Bxf6 {[%clk 0:02:57.5]} 6. e4 {[%clk 0:02:52.2]} 6... dxe4
{[%clk 0:02:57.9]} 7. Nxe4 {[%clk 0:02:53.1]} 7... O-O {[%clk 0:02:56.6]} 8. c3
{[%clk 0:02:43.5]} 8... b6 {[%clk 0:02:55.4]} 9. Bd3 {[%clk 0:02:43.1]} 9... Bb7
{[%clk 0:02:54.9]} 10. Qe2 {[%clk 0:02:43.8]} 10... Nd7 {[%clk 0:02:54.4]} 11.
O-O-O {[%clk 0:02:43.7]} 11... Qe7 {[%clk 0:02:47.2]} 12. h4 {[%clk 0:02:42.6]}
12... c5 {[%clk 0:02:44.1]} 13. Nfg5 {[%clk 0:02:26.1]} 13... cxd4 {[%clk
0:02:23.8]} 14. Nxh7 {[%clk 0:02:25.4]} 14... dxc3 {[%clk 0:02:23.9]} 15. Bc2
{[%clk 0:02:12.1]} 15... cxb2+ {[%clk 0:02:07]} 16. Kb1 {[%clk 0:02:10.6]} 16...
Bxe4 {[%clk 0:01:51.5]} 17. Qxe4 {[%clk 0:02:06.9]} 17... Rfd8 {[%clk 0:01:20]}
18. Rxd7 {[%clk 0:00:55.3]} 18... Qxd7 {[%clk 0:01:16.4]} 19. Ng5 {[%clk
0:00:30.1]} 19... Rac8 {[%clk 0:01:11.8]} 20. Nf3 {[%clk 0:00:20.2]} 20... Rc5
{[%clk 0:00:42.1]} 21. h5 {[%clk 0:00:19.5]} 21... Rdc8 {[%clk 0:00:37.6]} 22.
Ne1 {[%clk 0:00:04.7]} 22... Qd1+ {[%clk 0:00:34]} 23. Bxd1 {[%clk 0:00:04.6]}
23... Rc1# {[%clk 0:00:34.4]} 0-1

[Event "Late-Titled-Tuesday-Blitz-February-20-2024"]
[Site "Chess.com"]
[Date "2024.02.20"]
[Round "1"]
[White "BabageldiAnnaberdiyev"]
[Black "NowInChess"]
[Result "1-0"]
[WhiteElo "2616"]
[BlackElo "2303"]
[TimeControl "180+1"]
[EndTime "14:06:21 PST"]
[Termination "BabageldiAnnaberdiyev won by checkmate"]

1. e4 {[%clk 0:03:00.3]} 1... e6 {[%clk 0:02:59.5]} 2. d4 {[%clk 0:02:59.6]}
2... d5 {[%clk 0:03:00.1]} 3. e5 {[%clk 0:02:59.7]} 3... c5 {[%clk 0:03:00]} 4.
c3 {[%clk 0:03:00.6]} 4... Nc6 {[%clk 0:03:00.3]} 5. Nf3 {[%clk 0:03:01.2]} 5...
Qb6 {[%clk 0:03:00.7]} 6. a3 {[%clk 0:03:00.5]} 6... f6 {[%clk 0:03:00.6]} 7.
exf6 {[%clk 0:02:47.3]} 7... Nxf6 {[%clk 0:03:01.5]} 8. Bd3 {[%clk 0:02:45.1]}
8... Bd6 {[%clk 0:02:53.5]} 9. O-O {[%clk 0:02:43.3]} 9... O-O {[%clk
0:02:52.6]} 10. b4 {[%clk 0:02:32.7]} 10... cxd4 {[%clk 0:02:50]} 11. cxd4
{[%clk 0:02:33.6]} 11... Bd7 {[%clk 0:02:42.5]} 12. Nc3 {[%clk 0:02:28.4]} 12...
e5 {[%clk 0:02:15.3]} 13. Na4 {[%clk 0:02:22.1]} 13... Qc7 {[%clk 0:02:07]} 14.
b5 {[%clk 0:02:15.1]} 14... Nxd4 {[%clk 0:02:00.7]} 15. Nxd4 {[%clk 0:02:11.6]}
15... exd4 {[%clk 0:02:01.6]} 16. h3 {[%clk 0:02:02.9]} 16... Ne4 {[%clk
0:01:50.2]} 17. Bb2 {[%clk 0:02:01.6]} 17... Bh2+ {[%clk 0:01:37.4]} 18. Kh1
{[%clk 0:02:01.5]} 18... Nxf2+ {[%clk 0:01:37]} 19. Rxf2 {[%clk 0:02:01.6]}
19... Rxf2 {[%clk 0:01:37.7]} 20. Bxd4 {[%clk 0:01:58]} 20... Rf7 {[%clk
0:01:30]} 21. Qh5 {[%clk 0:01:54.7]} 21... h6 {[%clk 0:00:46.4]} 22. Qg6 {[%clk
0:01:43.9]} 22... Be5 {[%clk 0:00:43.1]} 23. Qh7+ {[%clk 0:01:31.4]} 23... Kf8
{[%clk 0:00:42.3]} 24. Re1 {[%clk 0:01:31.1]} 24... Re8 {[%clk 0:00:26.8]} 25.
Bc5+ {[%clk 0:01:30.6]} 25... Rfe7 {[%clk 0:00:15.5]} 26. Bg6 {[%clk 0:01:08.1]}
26... Be6 {[%clk 0:00:07.5]} 27. Rf1+ {[%clk 0:00:54]} 27... Bf6 {[%clk
0:00:06.6]} 28. Qh8+ {[%clk 0:00:54.5]} 28... Bg8 {[%clk 0:00:05.9]} 29. Rxf6+
{[%clk 0:00:54.9]} 29... gxf6 {[%clk 0:00:05.4]} 30. Qxf6+ {[%clk 0:00:55.8]}
30... Bf7 {[%clk 0:00:03]} 31. Qxf7# {[%clk 0:00:56.4]} 1-0

[Event "Late-Titled-Tuesday-Blitz-February-20-2024"]
[Site "Chess.com"]
[Date "2024.02.20"]
[Round "1"]
[White "NLLO777"]
[Black "dropstoneDP"]
[Result "0-1"]
[WhiteElo "2503"]
[BlackElo "3015"]
[TimeControl "180+1"]
[EndTime "14:06:22 PST"]
[Termination "dropstoneDP won by resignation"]

1. d4 {[%clk 0:03:00.9]} 1... d5 {[%clk 0:02:57.7]} 2. c4 {[%clk 0:03:01.2]}
2... dxc4 {[%clk 0:02:58.6]} 3. Nf3 {[%clk 0:03:00.1]} 3... Nf6 {[%clk
0:02:57.8]} 4. e3 {[%clk 0:02:57.9]} 4... e6 {[%clk 0:02:58.3]} 5. Bxc4 {[%clk
0:02:54.8]} 5... c5 {[%clk 0:02:58.6]} 6. O-O {[%clk 0:02:53.2]} 6... Nc6 {[%clk
0:02:59]} 7. Qe2 {[%clk 0:02:50.5]} 7... a6 {[%clk 0:02:58.3]} 8. Rd1 {[%clk
0:02:49.2]} 8... b5 {[%clk 0:02:58.3]} 9. dxc5 {[%clk 0:02:45.6]} 9... Qc7
{[%clk 0:02:56.3]} 10. Bd3 {[%clk 0:02:42.3]} 10... Bxc5 {[%clk 0:02:52.6]} 11.
Nbd2 {[%clk 0:02:40.4]} 11... O-O {[%clk 0:02:49.4]} 12. a4 {[%clk 0:02:40.3]}
12... bxa4 {[%clk 0:02:48.6]} 13. Rxa4 {[%clk 0:02:38.6]} 13... Rd8 {[%clk
0:02:49.1]} 14. h3 {[%clk 0:02:35.7]} 14... Nb4 {[%clk 0:02:45.3]} 15. Bb1
{[%clk 0:02:33.9]} 15... a5 {[%clk 0:02:44.8]} 16. Nb3 {[%clk 0:02:24.3]} 16...
Ba6 {[%clk 0:02:38.5]} 17. Rxd8+ {[%clk 0:02:22.6]} 17... Rxd8 {[%clk
0:02:38.7]} 18. Qe1 {[%clk 0:02:22.8]} 18... Bb6 {[%clk 0:02:33.9]} 19. Bd2
{[%clk 0:02:21.9]} 19... Bb5 {[%clk 0:02:31.5]} 20. Ra1 {[%clk 0:02:20.7]} 20...
g6 {[%clk 0:02:06.2]} 21. Nfd4 {[%clk 0:02:01.4]} 21... Bc4 {[%clk 0:02:06]} 22.
Bxb4 {[%clk 0:01:43.7]} 22... axb4 {[%clk 0:02:06.9]} 23. Bc2 {[%clk 0:01:33]}
23... Bxb3 {[%clk 0:02:05.5]} 24. Bxb3 {[%clk 0:01:32.2]} 24... Bxd4 {[%clk
0:02:05.6]} 25. exd4 {[%clk 0:01:28.9]} 25... Rxd4 {[%clk 0:02:06.5]} 26. Rc1
{[%clk 0:01:26.4]} 26... Qd6 {[%clk 0:02:05.1]} 27. g3 {[%clk 0:01:23.2]} 27...
Kg7 {[%clk 0:02:04.2]} 28. Bd1 {[%clk 0:01:19.4]} 28... h5 {[%clk 0:02:01.5]}
29. h4 {[%clk 0:01:17.3]} 29... Qd5 {[%clk 0:01:59.5]} 30. Be2 {[%clk
0:01:14.4]} 30... Re4 {[%clk 0:01:50.2]} 31. Qd1 {[%clk 0:01:09.3]} 31... Qxd1+
{[%clk 0:01:49.1]} 32. Bxd1 {[%clk 0:01:10.2]} 32... Re1+ {[%clk 0:01:49.3]} 33.
Kg2 {[%clk 0:01:09.5]} 33... Nd5 {[%clk 0:01:39.1]} 34. Rb1 {[%clk 0:01:10]}
34... f5 {[%clk 0:01:35.3]} 35. Bc2 {[%clk 0:01:09.4]} 35... Ne3+ {[%clk
0:01:31.3]} 36. fxe3 {[%clk 0:01:04.4]} 36... Re2+ {[%clk 0:01:31.8]} 37. Kf3
{[%clk 0:01:03]} 37... Rxc2 {[%clk 0:01:32.7]} 38. e4 {[%clk 0:01:01.1]} 38...
b3 {[%clk 0:01:32.1]} 39. exf5 {[%clk 0:00:59.6]} 39... gxf5 {[%clk 0:01:33]}
40. Ke3 {[%clk 0:00:49.2]} 40... Kf6 {[%clk 0:01:31.6]} 41. Kf3 {[%clk
0:00:49.3]} 41... e5 {[%clk 0:01:30]} 42. Ke3 {[%clk 0:00:43.7]} 42... Ke6
{[%clk 0:01:30.2]} 43. Kf3 {[%clk 0:00:43.5]} 43... e4+ {[%clk 0:01:21.8]} 44.
Ke3 {[%clk 0:00:40.7]} 44... Rg2 {[%clk 0:01:20.4]} 45. Kf4 {[%clk 0:00:38.5]}
45... Rf2+ {[%clk 0:01:20.8]} 46. Kg5 {[%clk 0:00:38.3]} 46... Ke5 {[%clk
0:01:20.3]} 47. Kxh5 {[%clk 0:00:38]} 47... Rg2 {[%clk 0:01:19]} 48. Ra1 {[%clk
0:00:32.8]} 48... Rxg3 {[%clk 0:01:18.9]} 49. Ra5+ {[%clk 0:00:32.4]} 49... Kf4
{[%clk 0:01:19.1]} 50. Rb5 {[%clk 0:00:32.9]} 50... e3 {[%clk 0:01:16.8]} 0-1

[Event "Late-Titled-Tuesday-Blitz-February-20-2024"]
[Site "Chess.com"]
[Date "2024.02.20"]
[Round "1"]
[White "GnowReopard"]
[Black "CFalcons8"]
[Result "1-0"]
[WhiteElo "2811"]
[BlackElo "2425"]
[TimeControl "180+1"]
[EndTime "14:06:23 PST"]
[Termination "GnowReopard won by resignation"]

1. e4 {[%clk 0:02:27]} 1... e5 {[%clk 0:02:58.9]} 2. Nf3 {[%clk 0:02:26.4]} 2...
Nc6 {[%clk 0:02:59]} 3. Bc4 {[%clk 0:02:25.4]} 3... Bc5 {[%clk 0:02:59.1]} 4. c3
{[%clk 0:02:25.1]} 4... Nf6 {[%clk 0:02:58.5]} 5. d4 {[%clk 0:02:25]} 5... exd4
{[%clk 0:02:58.7]} 6. e5 {[%clk 0:02:25.5]} 6... d5 {[%clk 0:02:52.5]} 7. Bb5
{[%clk 0:02:25.7]} 7... Ne4 {[%clk 0:02:52.8]} 8. cxd4 {[%clk 0:02:25.4]} 8...
Bb4+ {[%clk 0:02:52.2]} 9. Bd2 {[%clk 0:02:25]} 9... Bxd2+ {[%clk 0:02:50.3]}
10. Nbxd2 {[%clk 0:02:25.9]} 10... O-O {[%clk 0:02:46.7]} 11. O-O {[%clk
0:02:25.6]} 11... Bg4 {[%clk 0:02:44.6]} 12. Bxc6 {[%clk 0:02:22.9]} 12... bxc6
{[%clk 0:02:44.5]} 13. Qc2 {[%clk 0:02:22.8]} 13... Nxd2 {[%clk 0:02:43.9]} 14.
Nxd2 {[%clk 0:02:22.8]} 14... Qd7 {[%clk 0:02:41.7]} 15. Rac1 {[%clk 0:02:20]}
15... Be2 {[%clk 0:02:40.3]} 16. Rfe1 {[%clk 0:02:19]} 16... Bb5 {[%clk
0:02:37.7]} 17. a4 {[%clk 0:02:18.4]} 17... Ba6 {[%clk 0:02:37.3]} 18. Qxc6
{[%clk 0:02:18.2]} 18... Qxc6 {[%clk 0:02:34.8]} 19. Rxc6 {[%clk 0:02:19.1]}
19... Bd3 {[%clk 0:02:34.8]} 20. Rxc7 {[%clk 0:02:14.2]} 20... Rab8 {[%clk
0:02:35.1]} 21. b3 {[%clk 0:02:11.9]} 21... a6 {[%clk 0:02:34.9]} 22. Rec1
{[%clk 0:02:10.2]} 22... Rb4 {[%clk 0:02:33.5]} 23. R7c3 {[%clk 0:02:01.5]}
23... Bf5 {[%clk 0:02:24.8]} 24. Nf3 {[%clk 0:01:56.1]} 24... Rfb8 {[%clk
0:02:24.8]} 25. Rc5 {[%clk 0:01:13.8]} 25... Be6 {[%clk 0:02:16]} 26. Ra5 {[%clk
0:01:12.3]} 26... Rxb3 {[%clk 0:02:12.5]} 27. Rxa6 {[%clk 0:01:12.3]} 27... Rc3
{[%clk 0:01:59.2]} 28. Re1 {[%clk 0:01:02.3]} 28... Bg4 {[%clk 0:01:57.4]} 29.
Rd6 {[%clk 0:00:51.4]} 29... Bxf3 {[%clk 0:01:44.2]} 30. gxf3 {[%clk 0:00:51.3]}
30... Rxf3 {[%clk 0:01:45.1]} 31. Rxd5 {[%clk 0:00:51.6]} 31... Ra3 {[%clk
0:01:45.4]} 32. a5 {[%clk 0:00:44.9]} 32... Ra8 {[%clk 0:01:45.5]} 33. Rc1
{[%clk 0:00:43.9]} 33... Kf8 {[%clk 0:01:32.7]} 34. Rc7 {[%clk 0:00:42.4]} 34...
Ke8 {[%clk 0:01:09.7]} 35. Rdd7 {[%clk 0:00:40.6]} 35... Rf3 {[%clk 0:01:09.4]}
36. Re7+ {[%clk 0:00:37.9]} 36... Kf8 {[%clk 0:01:09.7]} 37. Ra7 {[%clk
0:00:27.3]} 37... Rxa7 {[%clk 0:01:08.7]} 38. Rxa7 {[%clk 0:00:28.2]} 38... Rd3
{[%clk 0:01:07.1]} 39. a6 {[%clk 0:00:27.8]} 39... Rxd4 {[%clk 0:01:05]} 40. Rb7
{[%clk 0:00:28.2]} 1-0

[Event "Late-Titled-Tuesday-Blitz-February-20-2024"]
[Site "Chess.com"]
[Date "2024.02.20"]
[Round "1"]
[White "Pelusiansky"]
[Black "TheMagician"]
[Result "1-0"]
[WhiteElo "2562"]
[BlackElo "2194"]
[TimeControl "180+1"]
[EndTime "14:06:26 PST"]
[Termination "Pelusiansky won on time"]

1. d4 {[%clk 0:02:58.4]} 1... Nf6 {[%clk 0:02:58.3]} 2. c4 {[%clk 0:02:58.5]}
2... e6 {[%clk 0:02:56.7]} 3. Nf3 {[%clk 0:02:58.4]} 3... Bb4+ {[%clk 0:02:55]}
4. Nbd2 {[%clk 0:02:56.2]} 4... O-O {[%clk 0:02:52.5]} 5. Qc2 {[%clk 0:02:54.9]}
5... d5 {[%clk 0:02:43]} 6. e3 {[%clk 0:02:53.7]} 6... Nbd7 {[%clk 0:02:30.5]}
7. a3 {[%clk 0:02:50.5]} 7... Be7 {[%clk 0:02:28.4]} 8. b4 {[%clk 0:02:48.1]}
8... a5 {[%clk 0:02:20.7]} 9. b5 {[%clk 0:02:47.7]} 9... c6 {[%clk 0:02:20]} 10.
bxc6 {[%clk 0:02:41.2]} 10... bxc6 {[%clk 0:02:19.7]} 11. Bd3 {[%clk 0:02:38.9]}
11... a4 {[%clk 0:02:15.3]} 12. O-O {[%clk 0:02:35.1]} 12... Ba6 {[%clk
0:02:05.2]} 13. Ne1 {[%clk 0:02:21.8]} 13... c5 {[%clk 0:02:00.3]} 14. cxd5
{[%clk 0:02:18]} 14... Bxd3 {[%clk 0:01:56.5]} 15. Nxd3 {[%clk 0:02:16.8]} 15...
Nxd5 {[%clk 0:01:31.6]} 16. dxc5 {[%clk 0:02:00.6]} 16... Qa5 {[%clk 0:01:03.9]}
17. Nc4 {[%clk 0:01:32]} 17... Qa7 {[%clk 0:00:59.3]} 18. c6 {[%clk 0:01:19.2]}
18... Nb8 {[%clk 0:00:46.1]} 19. e4 {[%clk 0:01:12]} 19... Nf6 {[%clk
0:00:39.8]} 20. Be3 {[%clk 0:01:10]} 20... Qc7 {[%clk 0:00:30.4]} 21. Nce5
{[%clk 0:00:54.1]} 21... Ra5 {[%clk 0:00:22]} 22. Rab1 {[%clk 0:00:43.3]} 22...
Bxa3 {[%clk 0:00:03.7]} 23. Bb6 {[%clk 0:00:41.5]} 1-0

[Event "Late-Titled-Tuesday-Blitz-February-20-2024"]
[Site "Chess.com"]
[Date "2024.02.20"]
[Round "1"]
[White "ChessFanNM"]
[Black "biostatistician"]
[Result "1-0"]
[WhiteElo "2321"]
[BlackElo "2598"]
[TimeControl "180+1"]
[EndTime "14:06:28 PST"]
[Termination "ChessFanNM won on time"]

1. Nf3 {[%clk 0:02:58.9]} 1... Nf6 {[%clk 0:02:57.6]} 2. c4 {[%clk 0:02:56.4]}
2... g6 {[%clk 0:02:56.6]} 3. Nc3 {[%clk 0:02:52.3]} 3... Bg7 {[%clk 0:02:56]}
4. e4 {[%clk 0:02:52]} 4... d6 {[%clk 0:02:27.5]} 5. d4 {[%clk 0:02:51.2]} 5...
O-O {[%clk 0:02:26]} 6. Be2 {[%clk 0:02:50.9]} 6... e5 {[%clk 0:02:26]} 7. O-O
{[%clk 0:02:50.1]} 7... Nc6 {[%clk 0:02:24.5]} 8. d5 {[%clk 0:02:50.1]} 8... Ne7
{[%clk 0:02:24]} 9. b4 {[%clk 0:02:50.5]} 9... Nh5 {[%clk 0:02:20.3]} 10. Re1
{[%clk 0:02:45.3]} 10... f5 {[%clk 0:02:20.2]} 11. Ng5 {[%clk 0:02:42.4]} 11...
Nf6 {[%clk 0:02:19.1]} 12. Bf3 {[%clk 0:02:40.1]} 12... fxe4 {[%clk 0:02:00.5]}
13. Ncxe4 {[%clk 0:02:38.5]} 13... Nxe4 {[%clk 0:02:00.9]} 14. Bxe4 {[%clk
0:02:37.2]} 14... Nf5 {[%clk 0:02:00.8]} 15. c5 {[%clk 0:02:33.2]} 15... Nd4
{[%clk 0:02:00.1]} 16. Be3 {[%clk 0:02:24.2]} 16... Bf5 {[%clk 0:01:57.5]} 17.
Rc1 {[%clk 0:02:13.4]} 17... Bxe4 {[%clk 0:01:55.3]} 18. Nxe4 {[%clk 0:02:13.2]}
18... Qh4 {[%clk 0:01:42.1]} 19. Bxd4 {[%clk 0:02:04.5]} 19... exd4 {[%clk
0:01:43]} 20. g3 {[%clk 0:02:04.4]} 20... Qh6 {[%clk 0:01:31.8]} 21. cxd6 {[%clk
0:01:56.2]} 21... cxd6 {[%clk 0:01:32.7]} 22. Qg4 {[%clk 0:01:44.7]} 22... d3
{[%clk 0:01:14.2]} 23. Rc7 {[%clk 0:01:39.6]} 23... Rae8 {[%clk 0:00:55.4]} 24.
Rd1 {[%clk 0:01:23.9]} 24... Re5 {[%clk 0:00:13.2]} 25. Rxd3 {[%clk 0:01:19.9]}
25... Ref5 {[%clk 0:00:12.2]} 26. f4 {[%clk 0:01:16.3]} 26... Rh5 {[%clk
0:00:09]} 27. Qe6+ {[%clk 0:01:07.4]} 27... Kh8 {[%clk 0:00:08.9]} 28. h4 {[%clk
0:01:06.9]} 28... Rxh4 {[%clk 0:00:02.2]} 29. gxh4 {[%clk 0:00:54.1]} 1-0